Cogmind - Beta 14 @@@ ROGUE MODE // 2024.10.27 @ 19:12:24 Player: toydarian Result: Destroyed by G-47 Trooper with Particle Gun Performance ------------- Evolutions (2) 1000 Regions Visited (5) 1000 Robots Destroyed (50) 250 Value Destroyed (1418) 1418 Prototype IDs (3) 60 Alien Tech Used (0) 0 Bonus (300) 300 TOTAL SCORE: 4028 Bonus ------- Aligned with FarCom 300 Cogmind --------- Core Integrity 0/550 Matter 186/300 Energy 265/265 System Corruption 0% Temperature Cool (27) Movement Walking (470) Ox5 Location -8/Materials Parts ------- > --- POWER (1) -------- Improved Ion Engine > --- PROPULSION (4) --- Aluminum Leg Aluminum Leg Aluminum Leg > --- UTILITY (4) ------ High-capacity Storage Unit Structural Scanner Power Shielding Utility Shielding > --- WEAPON (2) ------- Light Assault Rifle Katana > --- INVENTORY (20) --- Light Ion Engine Light Ion Engine Light Ion Engine Cesium-ion Thruster Medium Matter Pod (0) Experimental Sensor Array Power Shielding Light Armor Plating Hacking Suite PSU Rigger Particle Gun Pulse Rifle Light Assault Rifle Shotgun Grenade Launcher Grenade Launcher Mini Grenade Launcher Peak State ------------ > --- POWER ------------ Ion Engine > --- PROPULSION ------- Light Treads Light Treads Light Treads Light Treads > --- UTILITY ---------- High-capacity Storage Unit Experimental Sensor Array Core Shielding Power Shielding > --- WEAPON ----------- Heavy Assault Rifle Katana > --- INVENTORY -------- Ion Engine Light Ion Engine Light Ion Engine Light Ion Engine Light Treads Aluminum Leg Aluminum Leg Wheel Wheel Medium Matter Pod Large Matter Pod Structural Scanner Light Armor Plating PSU Rigger Medium Laser Small Laser Pulse Rifle Light Assault Rifle Grenade Launcher Grenade Launcher [Rating: 24] Favorites ----------- Power Ion Engine Engine Ion Engine Propulsion Light Treads Treads Light Treads Leg Aluminum Leg Utility High-capacity Storage Unit Device Experimental Sensor Array Storage High-capacity Storage Unit Protection Power Shielding Weapon Light Assault Rifle Energy Gun Medium Laser Ballistic Gun Light Assault Rifle Launcher Mini Grenade Launcher Slashing Weapon Katana Build | -11 -10 -10 -10 -9 -8 ------- Run | Yrd Mat Min Exi Min Mat Slots Evolved 4 | . . . . . 4 Power . | . . . . . . Propulsion 2 | . . . . . 2 Utility 2 | . . . . . 2 Weapon . | . . . . . . Parts Attached 67 | 6 3 . 4 2 52 Power 4 | 1 1 . . . 2 Engine 4 | 1 1 . . . 2 Core . | . . . . . . Reactor . | . . . . . . Propulsion 13 | 2 . . . . 11 Treads 5 | 2 . . . . 3 Leg 8 | . . . . . 8 Wheel . | . . . . . . Hover . | . . . . . . Flight . | . . . . . . Utility 20 | 1 2 . 4 1 12 Device 5 | . . . 3 . 2 Storage 4 | 1 1 . . . 2 Processor . | . . . . . . Hackware . | . . . . . . Protection 11 | . 1 . 1 1 8 Artifact . | . . . . . . Weapon 30 | 2 . . . 1 27 Energy Gun 3 | 1 . . . . 2 Energy Cannon . | . . . . . . Ballistic Gun 14 | 1 . . . 1 12 Ballistic Cannon . | . . . . . . Launcher 7 | . . . . . 7 Special Weapon . | . . . . . . Impact Weapon . | . . . . . . Slashing Weapon 6 | . . . . . 6 Piercing Weapon . | . . . . . . Special Melee Weapon . | . . . . . . Unidentified Prototypes 3 | . . . 2 . 1 Parts Lost 18 | . . . . . 18 Power 2 | . . . . . 2 Propulsion 10 | . . . . . 10 Utility 4 | . . . . . 4 Weapon 2 | . . . . . 2 Highest Loss Streak 4 | . . . . . 4 To Critical Strikes . | . . . . . . Average Slot Usage (%) 96 | . 87 100 99 100 96 Engine 11 | . 14 14 14 14 8 Treads 20 | . 28 28 28 28 14 Leg 10 | . . . . . 17 Device 4 | . . . . . 7 Storage 11 | . 14 14 14 14 10 Protection 14 | . 2 14 13 14 18 Energy Gun 4 | . 14 14 14 1 . Ballistic Gun 15 | . 14 14 14 26 14 Slashing Weapon 1 | . . . . . 2 Peak Build Rating 24 | 6 8 8 21 10 24 Average Rating 15 | 4 6 8 8 9 20 On Entrance 6 | . 6 8 8 9 10 Naked Turns . | . . . . . . Heaviest Build 58 | 12 50 50 50 50 58 Greatest Support 80 | 40 40 40 40 40 80 Greatest Overweight (x) 5 | . 1 1 1 1 5 Average Overweight (x) . | . . 1 1 1 . Largest Inventory Capacity 20 | 8 20 20 20 20 20 Average Capacity 19 | 6 19 20 20 20 20 Most Carried 20 | 6 15 15 17 20 20 Average Carried 16 | 4 9 15 15 19 17 Final Capacity 20 | 8 20 20 20 20 20 Final Carried 20 | 6 15 15 16 20 17 Class Distribution -------------------- 45% | Mutant 29% | Scavenger-Skirmisher 13% | Scavenger-Mutant 6% | Skirmisher 5% | Scavenger-Assassin Dominant Class ---------------- Mutant | -10/Materials Mutant | -10/Mines Mutant | -10/Exiles Mutant | -9/Mines Scavenger-Skirmisher | -8/Materials Resources | -11 -10 -10 -10 -9 -8 ----------- Run | Yrd Mat Min Exi Min Mat Matter Collected 1398 | 199 218 . . 105 876 Remotely . | . . . . . . Salvage Created 1200 | . 207 . . 49 944 Parts 89 | . 22 . . 6 61 Haulers Intercepted 1 | . 1 . . . . Recyclers Shooed 3 | . . . . . 3 Parts Field Recycled . | . . . . . . Retrieved Matter . | . . . . . . Parts Self-Destructed . | . . . . . . Prevented . | . . . . . . Kills | -11 -10 -10 -10 -9 -8 ------- Run | Yrd Mat Min Exi Min Mat Combat Hostiles Destroyed 40 | . 7 . . 3 30 Guns 27 | . 7 . . 3 17 AOE 13 | . . . . . 13 Classes Destroyed 8 | . 4 . . . 4 Worker 3 | . 1 . . . 2 Builder 3 | . . . . . 3 Hauler 1 | . 1 . . . . Operator 2 | . . . . . 2 Watcher 1 | . . . . . 1 Swarmer 15 | . 5 . . 3 7 Grunt 23 | . 2 . . . 21 Sentry 2 | . . . . . 2 Best Kill Streak 7 | . 3 . . 3 7 Combat Bots Only 6 | . 3 . . 3 6 Max Kills in Single Turn 4 | . 1 . . 1 4 Gunslinging . | . . . . . . Exploded 2 | . . . . . 2 Melee . | . . . . . . Uniques/NPCs Destroyed . | . . . . . . Combat | -11 -10 -10 -10 -9 -8 -------- Run | Yrd Mat Min Exi Min Mat Hostile Shots Fired 254 | . 31 . . 21 202 Missed 54 | . 9 . . 5 40 Damage Taken 2876 | . 185 . . 133 2558 Core 634 | . 36 . . 34 564 Absorbed by Shields . | . . . . . . Redirected to Shielding 81 | . . . . 3 78 Core Remaining (%) 86 | 100 . . . 72 . Volleys Fired 144 | . 19 . . 8 117 Largest 2 | . 2 . . 2 2 Hottest 128 | . 70 . . 70 128 Shots Fired 268 | . 38 . . 16 214 Gun 247 | . 38 . . 16 193 Cannon . | . . . . . . Launcher 21 | . . . . . 21 Special . | . . . . . . Kinetic 192 | . 19 . . 9 164 Thermal 55 | . 19 . . 7 29 Explosive 21 | . . . . . 21 Electromagnetic . | . . . . . . Robot Hit Streak 14 | . 7 . . 3 14 Robot Miss Streak 5 | . 2 . . 5 3 Penetration Max . | . . . . . . Secondary Targets 5 | . . . . 2 3 Max Gunslinging Chain 1 | . . . . 1 1 Shots Hit Robots 167 | . 23 . . 5 139 Core Hits 111 | . 12 . . 3 96 Critical Kills . | . . . . . . Critical Parts Destroyed 3 | . 1 . . . 2 Critical Strikes 4 | . 2 . . . 2 Burn 1 | . 1 . . . . Destroy 3 | . 1 . . . 2 Melee Attacks 7 | . . . . . 7 Impact . | . . . . . . Slashing 7 | . . . . . 7 Piercing . | . . . . . . Sneak Attacks . | . . . . . . Combat Hostiles . | . . . . . . Follow-up Attacks . | . . . . . . Damage Inflicted 3989 | . 303 . . 65 3621 Guns 1922 | . 303 . . 65 1554 Cannons . | . . . . . . Explosions 2067 | . . . . . 2067 Melee . | . . . . . . Ramming . | . . . . . . Kinetic 1370 | . 165 . . 15 1190 Thermal 552 | . 138 . . 50 364 Explosive 2067 | . . . . . 2067 Electromagnetic . | . . . . . . Impact . | . . . . . . Slashing . | . . . . . . Piercing . | . . . . . . Highest Corruption . | . . . . . . Average Corruption . | . . . . . . Corruption Purged . | . . . . . . Corruption Blocked . | . . . . . . Overload Shots . | . . . . . . Overflow Damage 47 | . . . . . 47 Projectiles . | . . . . . . Explosions 47 | . . . . . 47 Melee . | . . . . . . Knockbacks . | . . . . . . Impact . | . . . . . . Kinetic . | . . . . . . Secondary . | . . . . . . Self-Inflicted Damage 89 | . . . . . 89 Shots 3 | . . . . . 3 Rammed . | . . . . . . Targets Rammed . | . . . . . . Kicked . | . . . . . . Crushed . | . . . . . . Highest Temperature 686 | . 75 . . 63 686 Average Temperature 109 | . 25 . . 32 150 Received Heat Transfer 1353 | . 30 . . . 1323 Effects 23 | . . . . . 23 Shutdowns 3 | . . . . . 3 Energy Bleed 2 | . . . . . 2 Matter Decay 4 | . . . . . 4 Short Circuit 3 | . . . . . 3 Damage (minor) 3 | . . . . . 3 Damage (major) 6 | . . . . . 6 Damage (core) 2 | . . . . . 2 Siege Activations . | . . . . . . Robots Corrupted . | . . . . . . Combat Hostiles . | . . . . . . Parts Fried . | . . . . . . Impact Corruptions . | . . . . . . Robots Melted . | . . . . . . Combat Hostiles . | . . . . . . Parts Melted 3 | . 1 . . . 2 Heat Transferred 1443 | . 481 . . 148 814 Parts Sabotaged . | . . . . . . Parts Stolen . | . . . . . . Parts Stripped . | . . . . . . Power Chain Reactions . | . . . . . . Alert | -11 -10 -10 -10 -9 -8 ------- Run | Yrd Mat Min Exi Min Mat Peak Influence 344 | . 209 5 . 85 344 Initial 5 | . . 5 . . . Average 120 | . 72 5 . 64 158 Maximum Alert Level 1 | . 1 . . . 1 Low Security (%) 70 | 100 94 100 . 100 55 Level 1 29 | . 5 . . . 44 Level 2 . | . . . . . . Level 3 . | . . . . . . Level 4 . | . . . . . . Level 5 . | . . . . . . High Security . | . . . . . . Max Security . | . . . . . . Squads Dispatched 7 | . 1 . . . 6 Investigation 2 | . . . . . 2 Extermination . | . . . . . . Reinforcement 4 | . 1 . . . 3 Assault . | . . . . . . Garrison 1 | . . . . . 1 Intercept . | . . . . . . Searches Triggered . | . . . . . . Construction Impeded 1 | . . . . . 1 Haulers Reinforced . | . . . . . . Active Scanning Responses . | . . . . . . Cargo Convoy Interrupts . | . . . . . . Stealth | -11 -10 -10 -10 -9 -8 --------- Run | Yrd Mat Min Exi Min Mat Distress Signals 4 | . . . . . 4 Communications Jammed . | . . . . . . Distress Signals . | . . . . . . Times Spotted 60 | . 12 . . 3 45 Peak Tracking Total 6 | . 4 . . 2 6 Tactical Retreats 1 | . . . . . 1 Traps | -11 -10 -10 -10 -9 -8 ------- Run | Yrd Mat Min Exi Min Mat Traps Triggered . | . . . . . . Indirectly . | . . . . . . Trap Hack Attempts . | . . . . . . Triggered . | . . . . . . Disarmed . | . . . . . . Reprogrammed . | . . . . . . Reused . | . . . . . . Traps Extracted . | . . . . . . Installed . | . . . . . . Triggered . | . . . . . . Machines | -11 -10 -10 -10 -9 -8 ---------- Run | Yrd Mat Min Exi Min Mat Machines Disabled 4 | . . . . . 4 Max in Single Turn 1 | . . . . . 1 Garrison Access 1 | . . . . . 1 Machines Repaired . | . . . . . . Machines Dismantled . | . . . . . . Machines Sabotaged . | . . . . . . Overloaded Fab Kills . | . . . . . . Hacking | -11 -10 -10 -10 -9 -8 --------- Run | Yrd Mat Min Exi Min Mat Machines Accessed 6 | . . . . . 6 Terminals 5 | . . . . . 5 Fabricators . | . . . . . . Repair Stations . | . . . . . . Recycling Units . | . . . . . . Scanalyzers . | . . . . . . Garrison Access 1 | . . . . . 1 Total Hacks 17 | . . . . . 17 Successful 8 | . . . . . 8 Failed 9 | . . . . . 9 Catastrophic 2 | . . . . . 2 Database Lockouts . | . . . . . . Manual 5 | . . . 1 . 4 Terminals 16 | . . . . . 16 Fabricators . | . . . . . . Repair Stations . | . . . . . . Recycling Units . | . . . . . . Scanalyzers . | . . . . . . Garrison Access 1 | . . . . . 1 Terminal Hacks 7 | . . . . . 7 Record 2 | . . . . . 2 Level Access Points 1 | . . . . . 1 Alert Level 2 | . . . . . 2 Unreport Threat 1 | . . . . . 1 Investigation Status 1 | . . . . . 1 Fabricator Hacks . | . . . . . . Repair Station Hacks . | . . . . . . Recycling Unit Hacks . | . . . . . . Scanalyzer . | . . . . . . Garrison Access Hacks 1 | . . . . . 1 Seal Access 1 | . . . . . 1 Unauthorized Hacks . | . . . . . . Terminals . | . . . . . . Fabricators . | . . . . . . Repair Stations . | . . . . . . Recycling Units . | . . . . . . Scanalyzers . | . . . . . . Garrison Access . | . . . . . . Data Cores Recovered . | . . . . . . Used . | . . . . . . Hacking Detections 5 | . . . . . 5 Full Trace Events 2 | . . . . . 2 Feedback Events . | . . . . . . Feedback Blocked . | . . . . . . Robot Schematics Acquired . | . . . . . . Robots Built . | . . . . . . Authchips . | . . . . . . Time . | . . . . . . Total Robot Build Rating . | . . . . . . Part Schematics Acquired . | . . . . . . Parts Built . | . . . . . . Authchips . | . . . . . . Time . | . . . . . . Total Part Build Rating . | . . . . . . Parts Repaired . | . . . . . . Time . | . . . . . . Parts Recycled . | . . . . . . Recycled Matter . | . . . . . . Retrieved Matter . | . . . . . . Retrieved Components . | . . . . . . Parts Scanalyzed . | . . . . . . Part Schematics Acquired . | . . . . . . Parts Damaged . | . . . . . . Bothacking | -11 -10 -10 -10 -9 -8 ------------ Run | Yrd Mat Min Exi Min Mat Used RIF Installer . | . . . . . . Robots Hacked . | . . . . . . Non-combat . | . . . . . . Combat . | . . . . . . Robot Hacks Applied . | . . . . . . Relay Couplers Released . | . . . . . . Fabnet Peak Effective % . | . . . . . . Robots Rewired . | . . . . . . Allies Hacked . | . . . . . . Hacks Repelled . | . . . . . . Allies | -11 -10 -10 -10 -9 -8 -------- Run | Yrd Mat Min Exi Min Mat Total Allies . | . . . . . . Largest Group . | . . . . . . Highest-Rated Group . | . . . . . . Highest-Rated Ally . | . . . . . . Total Orders . | . . . . . . Ally Attacks . | . . . . . . Total Damage . | . . . . . . Kills . | . . . . . . Allies Corrupted . | . . . . . . Allies Melted . | . . . . . . Intel | -11 -10 -10 -10 -9 -8 ------- Run | Yrd Mat Min Exi Min Mat Robot Analysis Total . | . . . . . . Derelict Logs Recovered . | . . . . . . Drone Launches . | . . . . . . Drone Recoveries . | . . . . . . Exploration | -11 -10 -10 -10 -9 -8 ------------- Run | Yrd Mat Min Exi Min Mat Turns Passed 4119 | 74 494 216 543 511 2281 Spaces Moved 1589 | 41 177 91 224 201 855 Core 5 | 5 . . . . . Treads 1040 | 36 177 91 224 201 311 Legs 544 | . . . . . 544 Wheels . | . . . . . . Hover . | . . . . . . Flight . | . . . . . . Fastest Speed 50 | 50 160 240 240 240 160 Average Speed 214 | 146 235 240 240 240 198 Slowest Speed 470 | 160 240 240 240 240 470 Overloaded Moves . | . . . . . . Propulsion Burnouts . | . . . . . . Robots Hopped . | . . . . . . Cave-ins Triggered . | . . . . . . Exploration Rate (%) 34 | 4 22 33 60 40 50 Regions Visited 5 Branch Regions 3 Pre-discovered Areas 1 | . . . . 1 . Known Exits Taken . | . . . . . . Unknown Exits Taken 5 | 1 1 1 1 1 . Scrap Searched 2 | . . . . 2 . Spaces Dug 14 | . . . . . 14 Terrain Destroyed 117 | . . . . . 117 Melee 6 | . . . . . 6 Projectile . | . . . . . . AOE 111 | . . . . . 111 Terrain Rammed . | . . . . . . Walls Destroyed . | . . . . . . Machines Disabled . | . . . . . . Actions | -11 -10 -10 -10 -9 -8 --------- Run | Yrd Mat Min Exi Min Mat Total 2025 | 52 215 90 229 214 1225 Wait 177 | . 9 . . . 168 Move 1584 | 40 176 90 223 200 855 Hop . | . . . . . . Pick Up 35 | 6 7 . . 4 18 Fast Attach 15 | 6 2 . 2 . 5 Attach 17 | . . . . . 17 Detach 4 | . 1 . 2 . 1 Swap 35 | . 1 . 2 2 30 Drop 7 | . . . . . 7 Fire 144 | . 19 . . 8 117 Melee 7 | . . . . . 7 Ram . | . . . . . . Kick . | . . . . . . Crush . | . . . . . . Escape Stasis . | . . . . . . Rewire . | . . . . . . Trap . | . . . . . . Miscellaneous . | . . . . . . Route ------- -11/Scrapyard -10/Materials -10/Mines (discovered 3 exits: [*Mat x2] / *Exi) -10/Exiles -9/Mines -8/Materials (discovered 3 exits: *Fac x3) History --------- Turn | Location | Event 8 | -11/Scrapyard | Discovered new exit (range 15) 75 | -11/Scrapyard | Entered Materials 275 | -10/Materials | Discovered new exit (range 9) 303 | -10/Materials | Build established: Mutant 569 | -10/Materials | Entered Mines 569 | -10/Mines | Discovered new exit (range 8) 625 | -10/Mines | Discovered new exit (range 11) 640 | -10/Mines | Met a Derelict bent on vengeance 776 | -10/Mines | Deemed a non-threat by the Exiles lab entrance 776 | -10/Mines | Discovered new exit (range 5) 785 | -10/Mines | Entered Exiles 843 | -10/Exiles | Met 8R-AWN 886 | -10/Exiles | Met EX-HEX 951 | -10/Exiles | Met EX-BIN 982 | -10/Exiles | Aligned with FarCom system 985 | -10/Exiles | Given EX-Vault access code 1047 | -10/Exiles | Opened EX-Vault 1057 | -10/Exiles | Found Prototype Device 1057 | -10/Exiles | Identified PSU Rigger 1074 | -10/Exiles | Found Prototype Device 1074 | -10/Exiles | Identified Chronowheel 1074 | -10/Exiles | Activated Chronowheel 1124 | -10/Exiles | Warned to stay clear of 0b10 Research branches 1191 | -10/Exiles | Met EX-DEC 1306 | -10/Exiles | Discovered new exit (range 10) 1328 | -10/Exiles | Left Exiles lab with PSU Rigger 1328 | -10/Exiles | Entered Mines 1422 | -9/Mines | Found a damaged Exp. Sensor Array with a note attached 1426 | -9/Mines | Found Prototype Device 1821 | -9/Mines | Discovered new exit (range 7) 1822 | -9/Mines | Learned location of Storage (-8) 1839 | -9/Mines | Entered Materials 1839 | -8/Materials | Evolved 4 slots: Propulsion x2, Utility x2 1851 | -8/Materials | Identified Exp. Sensor Array 1892 | -8/Materials | Identified exit to Factory 2393 | -8/Materials | Build established: Scavenger-Skirmisher 2549 | -8/Materials | Garrison activated, responded to threat 2728 | -8/Materials | Lost 4 parts (4n) 2914 | -8/Materials | Lost 3 parts (1p1u1w) 3639 | -8/Materials | Lost 4 parts (2n2u) 3689 | -8/Materials | Core integrity fell below 50% 3918 | -8/Materials | Build established: Scavenger-Mutant 4001 | -8/Materials | Core integrity fell below 20% 4120 | -8/Materials | Destroyed by G-47 Trooper with Particle Gun Last Messages --------------- 04003_ Acquired 48 matter. 04004_ Aluminum Leg broken. 04004_ Overheating: Short circuit. 04005_ Aluminum Leg broken. 04005_ Overheating: Short circuit. 04006_ Overheating: Energy bleed (-29). 04007_ Overheating: Imp. Ion Engine damaged (-4). 04008_ Overheating: Broken Aluminum Leg damaged (-4). 04020_ Acquired 44 matter. 04057_ Acquired Lgt. Armor Plating. 04063_ Connecting with Terminal... >>Enumerate(Investigations) Retrieving latest reported positions... No active investigation squads found. >>Alert(Check) Current Alert Level: 1-J 04063_ ALERT: Suspicious activity at Terminal M007. Dispatching Investigation squad. 04116_ Broken Aluminum Leg destroyed. 04120_ Critical hit (Burn: +37). Map ----- +----------------------------------------------------+ | ???# #?########### #???# """ + #?? | | ???# #?# """ ## ##### # #?? | | ???# #?#" """"" ## ############ #?? | | ???# #?#T """"" # ########### #?? | | ???# #?#" """"" # #?? | | ???# #?# """ + +?? | | ??## ### # #?? | | ??# ## !# # #+## """ #?? | | ??# + ######## # """ #?? | | ??#] ## ! ### ## # """ #?? | | ??## ############?###### # #?? | | ???# #?????????????????# # #?? | | ?### ###???????????????# # """ #?? | | ?# #???????????????# # """ #?? | | ?# ######??????????# # """ ##?? | | ?#! +??????????##### #??? | | ?# [######?????????###### #??? | | ## ###????????????+ #??? | | ####+#####????????????# #??? | | # [ ##????????????# !!! #??? | | # = ##??# ?????# !!! #??? | | # ##??##+##?????# !!! #??? | | # ##??## ##???? #??? | | # [ ###### ##??? +??? | | ############## ##?? ##+########## #??? | | ??## ##@### # ??????????? #??? | | ??## ## ### # ??????????? #??? | | ??## #l # ???????????? ??? | | ??## # g + """????????? ?? | | ??## + m##+### """??????????##? | | ??## # # ## ??????g?????????? | | ??## # # =##?????????????????? | | ??## ###; ##?g???????????????? | | ??## #### "##?????????????????? | | ??############## T##?????????????????? | | ??############## "##?????????????????? | | ??????????????## ##?????????????????? | | ??????????????#######?????????????????? | | ??????????????#######?????????????????? | | ??????????????????????????????????????? | | ??????????????????????????????????????? | | ??????????????????????????????????????? | | ??????????????????????????????????????? | | ??????????????????????????????????????? | | ??????????????????????????????????????? | | ??????????????????????????????????????? | | ??????????????????????????????????????? | | | | | | | +----------------------------------------------------+ Best States ------------- Heat Dissipation 31 Energy Generation 12 Energy Capacity 265 Matter Stores 300 Matter Capacity 450 Sight Range 16 Robot Scan Range 20 Terrain Scan Density 10 Armor Coverage 375 Core Shielding 20 Power Shielding 33 Utility Shielding 33 Evasion (%) 40 Recoil Reduction 4 Item Schematics ----------------- None Robot Schematics ------------------ None Fabricated ------------ Nothing Alien Tech Used ----------------- None Achievements -------------- None Challenges ------------ None Game ------ Seed TargetingAssaultMediator Manual? 0 Play Time 00:33:03 Cumulative 28.0 hours Start 2024.10.27 @ 18:09:25 End 2024.10.27 @ 19:12:24 Sessions 3 Manual Loads 0 Difficulty Rogue Special Mode None Game No. 37 Rogue 30 Adventurer 0 Explorer 7 Win Type - Total 1 Types 1/0/0/0/0/0/0/0/0 Lore% 11 Gallery% 21 Achievement% 26 Wizard Run 0 Options --------- Layout 0 ASCII 0 Keyboard 0 Movement Mouse Keybinds 0 Fullscreen 1 Font 24/Terminus Map View 76x50 Zoom Use 0% Tactical HUD 1 Map Filters NONE Filters NONE Steam 1 RUN: 91d20279-472d-46f2-ab32-f7959444f8da